[Event "Titled Tuesday Blitz May 16 Late 2023"]
[White "Goltsev, Dmitry"]
[Black "Jovic, Stanoje"]
[WhiteFideId "24176710"]
[BlackFideId "905020"]
[WhiteElo "2356"]
[BlackElo "2236"]
[Result "1-0"]
[Round "02"]
[TimeControl "180+2"]
[Date "2023.05.16"]
[WhiteClock "0:00:04"]
[BlackClock "0:00:07"]

1. e4 {[%clk 0:03:00]}  c6 {[%clk 0:02:59]} 2. d4 {[%clk 0:03:00]}  d5 {[%clk 0:02:59]} 3. Nc3 {[%clk 0:03:01]}  dxe4 {[%clk 0:02:59]} 4. Nxe4 {[%clk 0:03:02]}  Nf6 {[%clk 0:02:59]} 5. Ng3 {[%clk 0:03:00]}  h5 {[%clk 0:02:59]} 6. h4 {[%clk 0:02:57]}  Bg4 {[%clk 0:02:58]} 7. f3 {[%clk 0:02:54]}  Qc7 {[%clk 0:02:54]} 8. N1e2 {[%clk 0:02:54]}  Bc8 {[%clk 0:02:46]} 9. Bf4 {[%clk 0:02:53]}  Qb6 {[%clk 0:02:41]} 10. b3 {[%clk 0:02:37]}  e6 {[%clk 0:02:37]} 11. c3 {[%clk 0:02:35]}  c5 {[%clk 0:02:28]} 12. Qd3 {[%clk 0:02:30]}  Nc6 {[%clk 0:02:23]} 13. Be3 {[%clk 0:02:12]}  Nd5 {[%clk 0:02:18]} 14. dxc5 {[%clk 0:02:04]}  Bxc5 {[%clk 0:02:15]} 15. Bxc5 {[%clk 0:02:05]}  Qxc5 {[%clk 0:02:14]} 16. Ne4 {[%clk 0:02:04]}  Qe7 {[%clk 0:02:11]} 17. c4 {[%clk 0:01:52]}  Ndb4 {[%clk 0:02:08]} 18. Qc3 {[%clk 0:01:30]}  O-O {[%clk 0:02:05]} 19. a3 {[%clk 0:01:28]}  Na6 {[%clk 0:02:04]} 20. Nf4 {[%clk 0:01:27]}  f5 {[%clk 0:01:52]} 21. Ng5 {[%clk 0:01:14]}  Rd8 {[%clk 0:01:40]} 22. Nxh5 {[%clk 0:01:09]}  Nd4 {[%clk 0:01:35]} 23. Rd1 {[%clk 0:01:03]}  e5 {[%clk 0:01:32]} 24. Bd3 {[%clk 0:00:44]}  Nc5 {[%clk 0:01:31]} 25. b4 {[%clk 0:00:35]}  Nce6 {[%clk 0:01:30]} 26. Qc1 {[%clk 0:00:23]}  g6 {[%clk 0:01:20]} 27. Ng3 {[%clk 0:00:18]}  Nf4 {[%clk 0:01:15]} 28. O-O {[%clk 0:00:14]}  Kg7 {[%clk 0:01:04]} 29. Qe3 {[%clk 0:00:13]}  Rh8 {[%clk 0:00:56]} 30. Rfe1 {[%clk 0:00:13]}  Rxh4 {[%clk 0:00:23]} 31. Bf1 {[%clk 0:00:09]}  Qxg5 {[%clk 0:00:19]} 32. Qxe5+ {[%clk 0:00:09]}  Qf6 {[%clk 0:00:19]} 33. Qe8 {[%clk 0:00:04]}  Be6 {[%clk 0:00:15]} 34. Qxa8 {[%clk 0:00:05]}  Qg5 {[%clk 0:00:14]} 35. Qxb7+ {[%clk 0:00:05]}  Bf7 {[%clk 0:00:14]} 36. Qd7 {[%clk 0:00:03]}  Qxg3 {[%clk 0:00:13]} 37. Qxd4+ {[%clk 0:00:03]}  Kh7 {[%clk 0:00:13]} 38. Bd3 {[%clk 0:00:01]}  Nh3+ {[%clk 0:00:13]} 39. Kf1 {[%clk 0:00:02]}  Ng5 {[%clk 0:00:12]} 40. Qf2 {[%clk 0:00:02]}  Rh1+ {[%clk 0:00:12]} 41. Ke2 {[%clk 0:00:02]}  Qe5+ {[%clk 0:00:12]} 42. Kd2 {[%clk 0:00:02]}  Qb2+ {[%clk 0:00:12]} 43. Bc2 {[%clk 0:00:02]}  Rh6 {[%clk 0:00:11]} 44. Rh1 {[%clk 0:00:02]}  Qxa3 {[%clk 0:00:11]} 45. Qe3 {[%clk 0:00:02]}  Qxb4+ {[%clk 0:00:10]} 46. Ke2 {[%clk 0:00:03]}  Qf8 {[%clk 0:00:09]} 47. Qxg5 {[%clk 0:00:02]}  Bxc4+ {[%clk 0:00:09]} 48. Kf2 {[%clk 0:00:02]}  Qc5+ {[%clk 0:00:09]} 49. Qe3 {[%clk 0:00:03]}  Qc7 {[%clk 0:00:08]} 50. Rxh6+ {[%clk 0:00:03]}  Kg7 {[%clk 0:00:07]} 51. Qg5 {[%clk 0:00:03]}  Bf7 {[%clk 0:00:06]} 52. Rxg6+ {[%clk 0:00:03]}  Bxg6 {[%clk 0:00:06]} 53. Bxf5 {[%clk 0:00:04]}  Qc5+ {[%clk 0:00:06]} 54. Kg3 {[%clk 0:00:04]}  Qc7+ {[%clk 0:00:06]} 55. Kh3 {[%clk 0:00:03]}  Qf4 {[%clk 0:00:07]} 56. Qxg6+ {[%clk 0:00:03]}  Kf8 {[%clk 0:00:07]} 57. Rd8+ {[%clk 0:00:03]}  Ke7 {[%clk 0:00:07]} 58. Re8# {[%clk 0:00:04]} 1-0


[Site "https://www.chess.com"]

[Event "Titled Tuesday Blitz May 16 Late 2023"]
[White "Koutlas, Nikolaos"]
[Black "Jaracz, Pawel"]
[WhiteFideId "25827138"]
[BlackFideId "1102222"]
[WhiteElo "2215"]
[BlackElo "2438"]
[Result "0-1"]
[Round "02"]
[TimeControl "180+2"]
[Date "2023.05.16"]
[WhiteClock "0:00:00"]
[BlackClock "0:01:19"]

1. Nf3 {[%clk 0:03:00]}  g6 {[%clk 0:02:56]} 2. h4 {[%clk 0:02:59]}  h5 {[%clk 0:02:55]} 3. c4 {[%clk 0:02:58]}  a5 {[%clk 0:02:55]} 4. Nc3 {[%clk 0:02:58]}  Bg7 {[%clk 0:02:53]} 5. d4 {[%clk 0:02:59]}  Nh6 {[%clk 0:02:53]} 6. e4 {[%clk 0:02:54]}  d6 {[%clk 0:02:52]} 7. Bg5 {[%clk 0:02:47]}  Ng4 {[%clk 0:02:52]} 8. Be2 {[%clk 0:02:39]}  Nc6 {[%clk 0:02:50]} 9. Qd2 {[%clk 0:02:38]}  f6 {[%clk 0:02:46]} 10. Bf4 {[%clk 0:02:33]}  e5 {[%clk 0:02:46]} 11. Bg3 {[%clk 0:02:21]}  Bh6 {[%clk 0:02:45]} 12. Qd3 {[%clk 0:02:15]}  Nb4 {[%clk 0:02:40]} 13. Qd1 {[%clk 0:02:13]}  c5 {[%clk 0:02:40]} 14. dxc5 {[%clk 0:01:20]}  dxc5 {[%clk 0:02:39]} 15. Nd5 {[%clk 0:01:15]}  Nc6 {[%clk 0:02:38]} 16. Qa4 {[%clk 0:01:07]}  O-O {[%clk 0:02:28]} 17. Rd1 {[%clk 0:01:01]}  Nd4 {[%clk 0:02:23]} 18. Nxd4 {[%clk 0:00:55]}  cxd4 {[%clk 0:02:24]} 19. O-O {[%clk 0:00:45]}  Bd7 {[%clk 0:02:11]} 20. Qa3 {[%clk 0:00:44]}  Bc6 {[%clk 0:02:11]} 21. Qc5 {[%clk 0:00:23]}  Kg7 {[%clk 0:02:06]} 22. a3 {[%clk 0:00:08]}  Rc8 {[%clk 0:02:05]} 23. Nb6 {[%clk 0:00:07]}  Rc7 {[%clk 0:02:05]} 24. Qxa5 {[%clk 0:00:07]}  Bxe4 {[%clk 0:02:01]} 25. Bxg4 {[%clk 0:00:04]}  hxg4 {[%clk 0:02:01]} 26. Bxe5 {[%clk 0:00:03]}  Rd7 {[%clk 0:01:29]} 27. Bxd4 {[%clk 0:00:04]}  Rxd4 {[%clk 0:01:29]} 28. Rxd4 {[%clk 0:00:02]}  Qxd4 {[%clk 0:01:29]} 29. Qb5 {[%clk 0:00:02]}  Rf7 {[%clk 0:01:21]} 30. Nc8 {[%clk 0:00:00]}  g3 {[%clk 0:01:19]} 0-1


[Site "https://www.chess.com"]

[Event "Titled Tuesday Blitz May 16 Late 2023"]
[White "Marra, Eduardo da Costa"]
[Black "Manelyuk, Daniil"]
[WhiteFideId "2106990"]
[BlackFideId "44173920"]
[WhiteElo "2252"]
[BlackElo "2259"]
[Result "0-1"]
[Round "02"]
[TimeControl "180+2"]
[Date "2023.05.16"]
[WhiteClock "0:00:18"]
[BlackClock "0:01:20"]

1. d4 {[%clk 0:03:00]}  Nf6 {[%clk 0:02:56]} 2. Nc3 {[%clk 0:03:00]}  d5 {[%clk 0:02:53]} 3. Bf4 {[%clk 0:03:01]}  a6 {[%clk 0:02:52]} 4. e3 {[%clk 0:03:01]}  b5 {[%clk 0:02:53]} 5. Nf3 {[%clk 0:02:57]}  Bb7 {[%clk 0:02:40]} 6. Bd3 {[%clk 0:02:56]}  Nbd7 {[%clk 0:02:38]} 7. O-O {[%clk 0:02:54]}  e6 {[%clk 0:02:39]} 8. Qe2 {[%clk 0:02:41]}  c5 {[%clk 0:02:37]} 9. dxc5 {[%clk 0:02:37]}  Nxc5 {[%clk 0:02:37]} 10. e4 {[%clk 0:02:38]}  dxe4 {[%clk 0:02:34]} 11. Nxe4 {[%clk 0:02:17]}  Ncxe4 {[%clk 0:02:30]} 12. Rfd1 {[%clk 0:01:57]}  Qb6 {[%clk 0:02:24]} 13. a4 {[%clk 0:01:49]}  Bc5 {[%clk 0:02:21]} 14. axb5 {[%clk 0:01:46]}  Nxf2 {[%clk 0:02:17]} 15. b4 {[%clk 0:01:32]}  Nxd3+ {[%clk 0:01:58]} 16. bxc5 {[%clk 0:01:32]}  Nxf4 {[%clk 0:01:58]} 17. Qe3 {[%clk 0:01:23]}  N4d5 {[%clk 0:01:56]} 18. Qd4 {[%clk 0:01:18]}  Qxb5 {[%clk 0:01:56]} 19. Rab1 {[%clk 0:01:16]}  Qc6 {[%clk 0:01:47]} 20. Ne5 {[%clk 0:01:16]}  Qc7 {[%clk 0:01:47]} 21. c4 {[%clk 0:01:03]}  O-O {[%clk 0:01:45]} 22. cxd5 {[%clk 0:01:02]}  Bxd5 {[%clk 0:01:46]} 23. Rbc1 {[%clk 0:00:56]}  Rfb8 {[%clk 0:01:44]} 24. Rf1 {[%clk 0:00:54]}  a5 {[%clk 0:01:37]} 25. Rxf6 {[%clk 0:00:54]}  gxf6 {[%clk 0:01:37]} 26. Ng4 {[%clk 0:00:55]}  Rb4 {[%clk 0:01:30]} 27. Nxf6+ {[%clk 0:00:48]}  Kf8 {[%clk 0:01:27]} 28. Qd2 {[%clk 0:00:41]}  Qf4 {[%clk 0:01:25]} 29. Qc3 {[%clk 0:00:25]}  Rc4 {[%clk 0:01:20]} 30. Nxh7+ {[%clk 0:00:18]}  Ke7 {[%clk 0:01:20]} 0-1


[Site "https://www.chess.com"]

[Event "Titled Tuesday Blitz May 16 Late 2023"]
[White "Gundam, Rohit"]
[Black "Amburgy, Ryan"]
[WhiteFideId "75002809"]
[BlackFideId "30924820"]
[WhiteElo "2441"]
[BlackElo "2134"]
[Result "0-1"]
[Round "02"]
[TimeControl "180+2"]
[Date "2023.05.16"]
[WhiteClock "0:00:01"]
[BlackClock "0:00:44"]

1. d4 {[%clk 0:03:00]}  Nf6 {[%clk 0:02:59]} 2. Nf3 {[%clk 0:02:59]}  d5 {[%clk 0:02:59]} 3. c4 {[%clk 0:02:58]}  e6 {[%clk 0:03:00]} 4. Nc3 {[%clk 0:02:58]}  Bb4 {[%clk 0:03:00]} 5. Qa4+ {[%clk 0:02:58]}  Nc6 {[%clk 0:03:00]} 6. e3 {[%clk 0:02:58]}  O-O {[%clk 0:03:00]} 7. Bd2 {[%clk 0:02:58]}  dxc4 {[%clk 0:03:00]} 8. Bxc4 {[%clk 0:02:55]}  Bd6 {[%clk 0:03:00]} 9. Nb5 {[%clk 0:02:49]}  Bd7 {[%clk 0:02:59]} 10. Nxd6 {[%clk 0:02:44]}  cxd6 {[%clk 0:03:00]} 11. Qd1 {[%clk 0:02:32]}  Rc8 {[%clk 0:02:59]} 12. Be2 {[%clk 0:02:27]}  Qb6 {[%clk 0:02:43]} 13. Qb3 {[%clk 0:02:14]}  Na5 {[%clk 0:02:34]} 14. Qxb6 {[%clk 0:02:11]}  axb6 {[%clk 0:02:35]} 15. Bd3 {[%clk 0:01:50]}  Ba4 {[%clk 0:02:13]} 16. b3 {[%clk 0:01:18]}  Bc6 {[%clk 0:02:12]} 17. Ke2 {[%clk 0:01:10]}  Be4 {[%clk 0:01:53]} 18. Rhc1 {[%clk 0:00:58]}  Nc6 {[%clk 0:01:49]} 19. a4 {[%clk 0:00:43]}  Na5 {[%clk 0:01:38]} 20. Rxc8 {[%clk 0:00:32]}  Rxc8 {[%clk 0:01:37]} 21. Rb1 {[%clk 0:00:32]}  Kf8 {[%clk 0:01:31]} 22. Bb4 {[%clk 0:00:31]}  Ke7 {[%clk 0:01:30]} 23. Nd2 {[%clk 0:00:10]}  Bd5 {[%clk 0:01:16]} 24. Bxa5 {[%clk 0:00:09]}  bxa5 {[%clk 0:01:16]} 25. Nc4 {[%clk 0:00:08]}  Bxg2 {[%clk 0:01:01]} 26. Rg1 {[%clk 0:00:05]}  Bd5 {[%clk 0:01:00]} 27. Rxg7 {[%clk 0:00:05]}  Bxc4 {[%clk 0:01:00]} 28. bxc4 {[%clk 0:00:04]}  Rc6 {[%clk 0:01:00]} 29. Rg3 {[%clk 0:00:02]}  Rb6 {[%clk 0:00:59]} 30. Bc2 {[%clk 0:00:03]}  Rb2 {[%clk 0:00:58]} 31. Kd3 {[%clk 0:00:03]}  Ra2 {[%clk 0:00:55]} 32. Kc3 {[%clk 0:00:04]}  Ra1 {[%clk 0:00:56]} 33. Kb2 {[%clk 0:00:03]}  Rf1 {[%clk 0:00:56]} 34. Rg2 {[%clk 0:00:04]}  h6 {[%clk 0:00:54]} 35. f4 {[%clk 0:00:04]}  d5 {[%clk 0:00:54]} 36. c5 {[%clk 0:00:04]}  Rf3 {[%clk 0:00:52]} 37. Re2 {[%clk 0:00:03]}  Ng4 {[%clk 0:00:50]} 38. e4 {[%clk 0:00:03]}  dxe4 {[%clk 0:00:48]} 39. Rxe4 {[%clk 0:00:04]}  Nxh2 {[%clk 0:00:46]} 40. d5 {[%clk 0:00:04]}  Ng4 {[%clk 0:00:45]} 41. d6+ {[%clk 0:00:05]}  Kd7 {[%clk 0:00:45]} 42. Re2 {[%clk 0:00:02]}  Ne3 {[%clk 0:00:44]} 43. Rh2 {[%clk 0:00:02]}  Nxc2 {[%clk 0:00:43]} 44. Kxc2 {[%clk 0:00:02]}  Rxf4 {[%clk 0:00:44]} 45. Rxh6 {[%clk 0:00:02]}  Rxa4 {[%clk 0:00:44]} 46. Rf6 {[%clk 0:00:02]}  Rc4+ {[%clk 0:00:43]} 47. Kd3 {[%clk 0:00:01]}  Rxc5 {[%clk 0:00:44]} 0-1


[Site "https://www.chess.com"]

[Event "Titled Tuesday Blitz May 16 Late 2023"]
[White "Schekachikhin, Maksim"]
[Black "Kielinkei"]
[WhiteFideId "24177830"]
[WhiteElo "2272"]
[BlackElo "2421"]
[Result "1-0"]
[Round "02"]
[TimeControl "180+2"]
[Date "2023.05.16"]
[WhiteClock "0:01:09"]
[BlackClock "0:00:48"]

1. d4 {[%clk 0:02:58]}  Nf6 {[%clk 0:02:59]} 2. c4 {[%clk 0:02:58]}  e6 {[%clk 0:02:59]} 3. Nc3 {[%clk 0:02:58]}  Bb4 {[%clk 0:03:00]} 4. e3 {[%clk 0:02:58]}  b6 {[%clk 0:02:59]} 5. Nf3 {[%clk 0:02:58]}  Bb7 {[%clk 0:02:57]} 6. Bd3 {[%clk 0:02:58]}  Ne4 {[%clk 0:02:58]} 7. O-O {[%clk 0:02:56]}  f5 {[%clk 0:02:54]} 8. Bxe4 {[%clk 0:02:48]}  fxe4 {[%clk 0:02:47]} 9. Nd2 {[%clk 0:02:43]}  Bxc3 {[%clk 0:02:39]} 10. bxc3 {[%clk 0:02:44]}  O-O {[%clk 0:02:38]} 11. Qg4 {[%clk 0:02:39]}  d5 {[%clk 0:02:24]} 12. Qxe6+ {[%clk 0:02:37]}  Kh8 {[%clk 0:02:25]} 13. cxd5 {[%clk 0:02:34]}  Bxd5 {[%clk 0:02:25]} 14. Qg4 {[%clk 0:02:33]}  Qe8 {[%clk 0:02:14]} 15. c4 {[%clk 0:02:25]}  Bb7 {[%clk 0:02:09]} 16. Bb2 {[%clk 0:02:24]}  Nd7 {[%clk 0:02:08]} 17. d5 {[%clk 0:02:24]}  Nf6 {[%clk 0:02:05]} 18. Qh4 {[%clk 0:02:19]}  Qg6 {[%clk 0:01:59]} 19. Bxf6 {[%clk 0:02:15]}  gxf6 {[%clk 0:01:59]} 20. Qxe4 {[%clk 0:02:10]}  Qg7 {[%clk 0:01:57]} 21. Nf3 {[%clk 0:02:08]}  Rae8 {[%clk 0:01:58]} 22. Qf4 {[%clk 0:02:07]}  c6 {[%clk 0:01:57]} 23. Rfd1 {[%clk 0:02:04]}  cxd5 {[%clk 0:01:57]} 24. cxd5 {[%clk 0:02:04]}  Rg8 {[%clk 0:01:57]} 25. Nh4 {[%clk 0:02:02]}  Re5 {[%clk 0:01:52]} 26. e4 {[%clk 0:01:59]}  Rh5 {[%clk 0:01:51]} 27. g3 {[%clk 0:01:58]}  Bc8 {[%clk 0:01:44]} 28. Ng2 {[%clk 0:01:48]}  Qf7 {[%clk 0:01:36]} 29. Rac1 {[%clk 0:01:45]}  Bh3 {[%clk 0:01:32]} 30. Rc7 {[%clk 0:01:42]}  Qf8 {[%clk 0:01:24]} 31. Rxa7 {[%clk 0:01:34]}  Rg4 {[%clk 0:01:21]} 32. Qc7 {[%clk 0:01:32]}  Rxe4 {[%clk 0:01:19]} 33. Nf4 {[%clk 0:01:28]}  Bg4 {[%clk 0:00:48]} 34. Rc1 {[%clk 0:01:09]} 1-0


[Site "https://www.chess.com"]

[Event "Titled Tuesday Blitz May 16 Late 2023"]
[White "Czopor, Maciej"]
[Black "BenchGM"]
[WhiteFideId "21805431"]
[WhiteElo "2324"]
[BlackElo "2418"]
[Result "1-0"]
[Round "02"]
[TimeControl "180+2"]
[Date "2023.05.16"]
[WhiteClock "0:01:30"]
[BlackClock "0:00:47"]

1. c4 {[%clk 0:03:00]}  Nf6 {[%clk 0:02:56]} 2. Nc3 {[%clk 0:03:00]}  b6 {[%clk 0:02:51]} 3. e4 {[%clk 0:03:00]}  e5 {[%clk 0:02:46]} 4. Nf3 {[%clk 0:02:59]}  Bb7 {[%clk 0:02:41]} 5. d3 {[%clk 0:02:42]}  Nc6 {[%clk 0:02:40]} 6. Bg5 {[%clk 0:02:35]}  Bc5 {[%clk 0:02:25]} 7. Be2 {[%clk 0:02:24]}  h6 {[%clk 0:02:15]} 8. Bh4 {[%clk 0:02:20]}  g5 {[%clk 0:02:10]} 9. Bg3 {[%clk 0:02:20]}  d6 {[%clk 0:01:59]} 10. a3 {[%clk 0:02:13]}  a5 {[%clk 0:01:56]} 11. Rb1 {[%clk 0:02:14]}  Nd4 {[%clk 0:01:52]} 12. b4 {[%clk 0:01:55]}  axb4 {[%clk 0:01:51]} 13. axb4 {[%clk 0:01:56]}  Nxf3+ {[%clk 0:01:45]} 14. Bxf3 {[%clk 0:01:57]}  Bd4 {[%clk 0:01:45]} 15. Nb5 {[%clk 0:01:57]}  Qd7 {[%clk 0:01:18]} 16. Nxd4 {[%clk 0:01:29]}  exd4 {[%clk 0:00:47]} 17. e5 {[%clk 0:01:30]} 1-0


[Site "https://www.chess.com"]

[Event "Titled Tuesday Blitz May 16 Late 2023"]
[White "EsmeraldasAnderson03"]
[Black "Domingo Nunez, Ruben"]
[BlackFideId "22245570"]
[WhiteElo "2407"]
[BlackElo "2404"]
[Result "0-1"]
[Round "02"]
[TimeControl "180+2"]
[Date "2023.05.16"]
[WhiteClock "0:00:00"]
[BlackClock "0:00:43"]

1. d4 {[%clk 0:03:00]}  g6 {[%clk 0:02:58]} 2. Nf3 {[%clk 0:02:59]}  Bg7 {[%clk 0:02:57]} 3. Bf4 {[%clk 0:03:00]}  Nf6 {[%clk 0:02:58]} 4. h3 {[%clk 0:02:59]}  d6 {[%clk 0:02:58]} 5. e3 {[%clk 0:02:59]}  O-O {[%clk 0:02:58]} 6. Bh2 {[%clk 0:02:59]}  b6 {[%clk 0:02:59]} 7. Be2 {[%clk 0:02:59]}  Bb7 {[%clk 0:02:59]} 8. O-O {[%clk 0:02:59]}  Nbd7 {[%clk 0:03:00]} 9. c4 {[%clk 0:02:59]}  Ne4 {[%clk 0:03:00]} 10. Nbd2 {[%clk 0:02:43]}  Nxd2 {[%clk 0:03:00]} 11. Nxd2 {[%clk 0:02:43]}  e5 {[%clk 0:03:00]} 12. Bf3 {[%clk 0:02:41]}  Qc8 {[%clk 0:03:00]} 13. Bxb7 {[%clk 0:02:39]}  Qxb7 {[%clk 0:03:01]} 14. Qf3 {[%clk 0:02:38]}  Qxf3 {[%clk 0:02:40]} 15. Nxf3 {[%clk 0:02:38]}  exd4 {[%clk 0:02:38]} 16. exd4 {[%clk 0:02:35]}  Rfe8 {[%clk 0:02:38]} 17. Rfe1 {[%clk 0:02:32]}  a5 {[%clk 0:02:37]} 18. Kf1 {[%clk 0:02:29]}  a4 {[%clk 0:02:38]} 19. Rxe8+ {[%clk 0:02:27]}  Rxe8 {[%clk 0:02:39]} 20. Re1 {[%clk 0:02:26]}  Rd8 {[%clk 0:02:39]} 21. Ke2 {[%clk 0:02:23]}  a3 {[%clk 0:02:39]} 22. b3 {[%clk 0:02:22]}  Bh6 {[%clk 0:02:24]} 23. Kd3 {[%clk 0:02:18]}  Kf8 {[%clk 0:02:24]} 24. g4 {[%clk 0:02:09]}  Ra8 {[%clk 0:02:23]} 25. g5 {[%clk 0:02:02]}  Bg7 {[%clk 0:02:23]} 26. Nd2 {[%clk 0:02:00]}  Nb8 {[%clk 0:02:23]} 27. c5 {[%clk 0:01:03]}  bxc5 {[%clk 0:01:49]} 28. dxc5 {[%clk 0:01:03]}  dxc5 {[%clk 0:01:46]} 29. Bxc7 {[%clk 0:00:56]}  Na6 {[%clk 0:01:47]} 30. Bd6+ {[%clk 0:00:49]}  Kg8 {[%clk 0:01:47]} 31. Kc4 {[%clk 0:00:44]}  Nb4 {[%clk 0:01:05]} 32. Bxc5 {[%clk 0:00:24]}  Nxa2 {[%clk 0:01:06]} 33. Nb1 {[%clk 0:00:24]}  Bb2 {[%clk 0:01:03]} 34. b4 {[%clk 0:00:18]}  Nc1 {[%clk 0:00:59]} 35. Nxa3 {[%clk 0:00:10]}  Bxa3 {[%clk 0:00:54]} 36. Re7 {[%clk 0:00:04]}  Rc8 {[%clk 0:00:48]} 37. h4 {[%clk 0:00:01]}  Bxb4 {[%clk 0:00:45]} 38. Kb5 {[%clk 0:00:01]}  Bxc5 {[%clk 0:00:43]} 39. Re8+ {[%clk 0:00:00]}  Rxe8 {[%clk 0:00:43]} 0-1


[Site "https://www.chess.com"]

[Event "Titled Tuesday Blitz May 16 Late 2023"]
[White "Seemann, Jakub"]
[Black "Mickiewicz, Piotr"]
[WhiteFideId "21874697"]
[BlackFideId "1114891"]
[WhiteElo "2364"]
[BlackElo "2246"]
[Result "0-1"]
[Round "02"]
[TimeControl "180+2"]
[Date "2023.05.16"]
[WhiteClock "0:00:00"]
[BlackClock "0:00:11"]

1. e4 {[%clk 0:02:59]}  c5 {[%clk 0:02:53]} 2. Nf3 {[%clk 0:02:59]}  e6 {[%clk 0:02:53]} 3. d4 {[%clk 0:02:59]}  cxd4 {[%clk 0:02:53]} 4. Nxd4 {[%clk 0:03:00]}  Nf6 {[%clk 0:02:53]} 5. Nc3 {[%clk 0:03:00]}  d6 {[%clk 0:02:51]} 6. g4 {[%clk 0:03:00]}  a6 {[%clk 0:02:47]} 7. g5 {[%clk 0:02:57]}  Nfd7 {[%clk 0:02:48]} 8. h4 {[%clk 0:02:57]}  b5 {[%clk 0:02:44]} 9. Bg2 {[%clk 0:02:57]}  Bb7 {[%clk 0:02:44]} 10. Be3 {[%clk 0:02:56]}  b4 {[%clk 0:02:36]} 11. Nce2 {[%clk 0:02:56]}  Nc5 {[%clk 0:02:37]} 12. Ng3 {[%clk 0:02:55]}  Nbd7 {[%clk 0:02:36]} 13. f4 {[%clk 0:02:55]}  Qc7 {[%clk 0:02:12]} 14. Qe2 {[%clk 0:02:35]}  e5 {[%clk 0:02:12]} 15. Ndf5 {[%clk 0:02:31]}  g6 {[%clk 0:02:11]} 16. Nh6 {[%clk 0:02:23]}  exf4 {[%clk 0:01:59]} 17. Bxf4 {[%clk 0:02:15]}  Ne5 {[%clk 0:01:53]} 18. O-O {[%clk 0:02:08]}  Bxh6 {[%clk 0:01:08]} 19. gxh6 {[%clk 0:02:06]}  O-O {[%clk 0:01:09]} 20. a3 {[%clk 0:01:50]}  Ne6 {[%clk 0:01:02]} 21. Bxe5 {[%clk 0:01:43]}  dxe5 {[%clk 0:01:02]} 22. axb4 {[%clk 0:01:42]}  Nf4 {[%clk 0:00:21]} 23. Qf2 {[%clk 0:01:37]}  f5 {[%clk 0:00:20]} 24. Kh2 {[%clk 0:01:22]}  Nxg2 {[%clk 0:00:20]} 25. Qxg2 {[%clk 0:01:18]}  f4 {[%clk 0:00:21]} 26. Nh1 {[%clk 0:00:51]}  Qc4 {[%clk 0:00:19]} 27. Rae1 {[%clk 0:00:42]}  Rad8 {[%clk 0:00:19]} 28. c3 {[%clk 0:00:36]}  Rf5 {[%clk 0:00:20]} 29. Nf2 {[%clk 0:00:29]}  Rh5 {[%clk 0:00:19]} 30. Qg4 {[%clk 0:00:29]}  Qc8 {[%clk 0:00:17]} 31. Rg1 {[%clk 0:00:19]}  Qxg4 {[%clk 0:00:15]} 32. Rxg4 {[%clk 0:00:20]}  Bc8 {[%clk 0:00:15]} 33. Rg5 {[%clk 0:00:20]}  Rxh4+ {[%clk 0:00:15]} 34. Kg2 {[%clk 0:00:21]}  Rxh6 {[%clk 0:00:14]} 35. Rxe5 {[%clk 0:00:20]}  Rf8 {[%clk 0:00:13]} 36. Kf3 {[%clk 0:00:18]}  Rh2 {[%clk 0:00:13]} 37. Rg1 {[%clk 0:00:17]}  Kg7 {[%clk 0:00:12]} 38. Re7+ {[%clk 0:00:17]}  Rf7 {[%clk 0:00:13]} 39. Rxf7+ {[%clk 0:00:16]}  Kxf7 {[%clk 0:00:13]} 40. c4 {[%clk 0:00:16]}  Kf6 {[%clk 0:00:12]} 41. c5 {[%clk 0:00:14]}  g5 {[%clk 0:00:12]} 42. Rd1 {[%clk 0:00:10]}  h5 {[%clk 0:00:10]} 43. Rd6+ {[%clk 0:00:07]}  Be6 {[%clk 0:00:10]} 44. e5+ {[%clk 0:00:03]}  Kxe5 {[%clk 0:00:10]} 45. Nd3+ {[%clk 0:00:04]}  Kf6 {[%clk 0:00:11]} 46. c6 {[%clk 0:00:04]}  Rh3+ {[%clk 0:00:10]} 47. Ke4 {[%clk 0:00:04]}  Ke7 {[%clk 0:00:11]} 48. Rxe6+ {[%clk 0:00:02]}  Kxe6 {[%clk 0:00:10]} 49. c7 {[%clk 0:00:02]}  Re3+ {[%clk 0:00:10]} 50. Kd4 {[%clk 0:00:02]}  Rxd3+ {[%clk 0:00:11]} 51. Kxd3 {[%clk 0:00:03]}  Kd7 {[%clk 0:00:12]} 52. Ke4 {[%clk 0:00:03]}  Kxc7 {[%clk 0:00:12]} 53. Kf5 {[%clk 0:00:00]}  f3 {[%clk 0:00:11]} 0-1


[Site "https://www.chess.com"]

[Event "Titled Tuesday Blitz May 16 Late 2023"]
[White "Kourkoulos-Arditis, Stamatis"]
[Black "Kovacevic, Radmila"]
[WhiteFideId "4221990"]
[BlackFideId "933171"]
[WhiteElo "2400"]
[BlackElo "2194"]
[Result "1-0"]
[Round "02"]
[TimeControl "180+2"]
[Date "2023.05.16"]
[WhiteClock "0:01:16"]
[BlackClock "0:00:53"]

1. e4 {[%clk 0:03:00]}  e5 {[%clk 0:03:00]} 2. Nc3 {[%clk 0:02:59]}  Nf6 {[%clk 0:02:57]} 3. g3 {[%clk 0:02:59]}  d5 {[%clk 0:02:55]} 4. exd5 {[%clk 0:03:00]}  Nxd5 {[%clk 0:02:56]} 5. Bg2 {[%clk 0:03:01]}  Nxc3 {[%clk 0:02:56]} 6. bxc3 {[%clk 0:03:01]}  c6 {[%clk 0:02:55]} 7. Nf3 {[%clk 0:02:58]}  Bd6 {[%clk 0:02:54]} 8. O-O {[%clk 0:02:59]}  O-O {[%clk 0:02:54]} 9. Re1 {[%clk 0:02:58]}  Bg4 {[%clk 0:02:48]} 10. Rb1 {[%clk 0:02:51]}  Qc7 {[%clk 0:02:41]} 11. h3 {[%clk 0:02:49]}  Bh5 {[%clk 0:02:40]} 12. d3 {[%clk 0:02:45]}  Nd7 {[%clk 0:02:39]} 13. g4 {[%clk 0:02:38]}  Bg6 {[%clk 0:02:35]} 14. Nh4 {[%clk 0:02:38]}  f5 {[%clk 0:02:29]} 15. Nxf5 {[%clk 0:02:30]}  Bxf5 {[%clk 0:02:28]} 16. gxf5 {[%clk 0:02:31]}  Nf6 {[%clk 0:02:11]} 17. Bg5 {[%clk 0:02:28]}  Nd5 {[%clk 0:02:07]} 18. Qg4 {[%clk 0:02:19]}  Kh8 {[%clk 0:01:54]} 19. c4 {[%clk 0:02:16]}  Nf6 {[%clk 0:01:52]} 20. Bxf6 {[%clk 0:02:05]}  Rxf6 {[%clk 0:01:53]} 21. Be4 {[%clk 0:02:01]}  Raf8 {[%clk 0:01:49]} 22. Re3 {[%clk 0:01:53]}  Bc5 {[%clk 0:01:45]} 23. Rf3 {[%clk 0:01:49]}  Qd7 {[%clk 0:01:35]} 24. Kh1 {[%clk 0:01:41]}  b6 {[%clk 0:01:31]} 25. Rg1 {[%clk 0:01:36]}  R8f7 {[%clk 0:01:31]} 26. Qh5 {[%clk 0:01:34]}  Rh6 {[%clk 0:01:20]} 27. Qg4 {[%clk 0:01:27]}  Rhf6 {[%clk 0:01:20]} 28. Rg2 {[%clk 0:01:22]}  a5 {[%clk 0:01:12]} 29. a4 {[%clk 0:01:19]}  Qe7 {[%clk 0:01:04]} 30. Rfg3 {[%clk 0:01:18]}  Qd7 {[%clk 0:01:02]} 31. Qh5 {[%clk 0:01:17]}  Rh6 {[%clk 0:00:53]} 32. Qxh6 {[%clk 0:01:16]} 1-0


[Site "https://www.chess.com"]